bitfinex-derivatives/quotes_ETHF0:USTF0_20260312
["timestamp","ask_amount","ask_price","bid_price","bid_amount"]
[1773359189772,0.59883514,2080.1,2079.6,0.0040485]
[1773359190174,0.59377024,2080.0,2079.3,0.51832102]
[1773359190569,0.59377024,2079.8,2079.2,0.51832102]
[1773359190769,1.85246045,2080.1,2078.5,0.0054]
[1773359190770,0.59377024,2079.2,2078.5,0.0054]
[1773359191072,0.59377024,2079.2,2078.7,0.51832102]
[1773359191270,0.59377024,2079.2,2078.7,0.51980694]
[1773359191473,0.59377024,2079.2,2078.7,0.00148592]
[1773359192270,0.59377024,2079.2,2078.5,0.52307121]
[1773359193369,1.84739555,2079.5,2078.5,0.0054]
[1773359193370,0.59377024,2079.0,2078.5,0.0054]
[1773359193569,0.59377024,2079.0,2078.5,0.5224552]
[1773359193774,0.59377024,2079.0,2078.5,0.0054]
[1773359193974,0.59377024,2078.8,2078.5,0.0054]
[1773359194274,0.59377024,2078.8,2078.3,0.0054]
[1773359194478,0.59377024,2078.8,2078.3,0.5224552]
[1773359195774,0.59377024,2078.8,2078.3,0.0054]
[1773359197075,0.59377024,2079.2,2078.3,0.51589813]
[1773359199078,0.59377024,2079.2,2078.3,0.0054]
[1773359200279,11.50377024,2079.2,2078.3,0.0054]
[1773359200578,0.59377024,2079.1,2078.3,0.0054]
[1773359202274,2.49959727,2078.9,2078.1,0.0054]
[1773359202482,0.59377024,2078.8,2078.1,0.0054]
[1773359203880,0.59377024,2078.8,2077.9,0.0054]
[1773359204386,0.59377024,2078.8,2077.1,0.0054]
[1773359204387,0.54238418,2077.9,2077.1,0.0054]
[1773359204587,0.54714734,2077.9,2077.1,0.0054]
[1773359205074,0.54238418,2077.5,2076.9,0.0054]
[1773359205377,0.54238418,2077.5,2076.5,0.0054]
[1773359205580,0.54238418,2077.5,2075.9,0.0054]
[1773359205581,0.54238418,2076.5,2075.3,0.0054]
[1773359205778,0.54238418,2076.4,2075.3,0.53987759]
[1773359205978,0.54704726,2076.4,2075.3,0.53987759]
[1773359207470,0.54704726,2076.4,2075.5,0.53447759]
[1773359207674,0.00466308,2076.4,2075.5,0.53447759]
[1773359208273,0.54238418,2076.9,2076.5,0.53447759]
[1773359208473,0.54238418,2077.5,2076.5,0.53447759]
[1773359208785,0.54238418,2077.3,2076.0,0.53447759]
[1773359209283,0.54238418,2077.0,2076.0,0.538553]
[1773359210588,0.54238418,2077.0,2076.0,0.00407541]
[1773359211787,0.54238418,2077.0,2076.0,0.54452139]
[1773359211987,0.55281597,2076.8,2076.0,0.54452139]
[1773359214488,0.55281597,2077.0,2076.0,0.54452139]
[1773359216693,0.55281597,2077.0,2076.1,0.54044598]
[1773359217389,0.00457726,2077.3,2076.1,0.54044598]
[1773359217598,0.00457726,2077.3,2076.3,0.54044598]
[1773359217989,0.00457726,2077.3,2076.3,41.34044598]
[1773359218190,0.00457726,2077.3,2076.4,0.54044598]
[1773359218694,0.00457726,2077.3,2076.5,0.79284598]
[1773359219189,0.00457726,2077.3,2076.8,0.79722598]
[1773359219407,0.55281597,2077.7,2077.1,0.54044598]
[1773359219699,0.55281597,2077.7,2076.9,0.78555598]
[1773359219891,0.55281597,2077.7,2077.0,0.78339598]
[1773359220302,0.55866565,2077.7,2077.0,0.54044598]
[1773359220797,0.55866565,2077.7,2077.2,0.54044598]
[1773359221003,0.55281597,2077.9,2077.4,0.54044598]
[1773359221303,0.55281597,2078.3,2077.5,0.54044598]
[1773359221600,0.55281597,2078.3,2077.3,0.54044598]
[1773359222000,0.5579569,2078.3,2077.3,0.5447558]
[1773359223197,0.5579569,2078.3,2077.4,0.54044598]
[1773359225206,0.5579569,2078.3,2077.5,0.78127598]
[1773359225403,0.5579569,2078.3,2077.7,0.54044598]
[1773359226311,0.5579569,2078.3,2077.4,0.54044598]
[1773359228605,0.5579569,2078.3,2077.5,0.54044598]
[1773359228910,0.5579569,2078.3,2077.7,0.54044598]
[1773359229110,0.5579569,2078.3,2077.8,0.54044598]
[1773359231806,0.5579569,2078.3,2077.4,0.54044598]
[1773359233409,0.5579569,2078.3,2077.3,0.00430982]
[1773359235715,0.5579569,2078.3,2077.3,0.53527485]
[1773359236316,0.55281597,2078.1,2077.3,0.53527485]
[1773359236715,0.55281597,2078.1,2077.3,0.00430982]
[1773359236917,0.55281597,2078.0,2077.3,0.00430982]
[1773359237815,0.55281597,2078.0,2077.3,0.5447558]
[1773359243118,0.55281597,2078.0,2077.4,0.78724738]
[1773359243318,0.55281597,2078.0,2077.5,0.78695738]
[1773359243819,0.55281597,2078.0,2077.5,0.54293738]
[1773359246615,6.55658434,2078.1,2077.5,0.54293738]
[1773359246821,6.01770928,2078.0,2077.5,0.54293738]
[1773359247021,0.53887506,2078.1,2077.5,0.54293738]
[1773359247221,6.59355589,2078.0,2077.5,0.54293738]
[1773359247421,0.53887506,2078.0,2077.5,0.54293738]
[1773359247822,6.05495022,2077.9,2077.5,0.54293738]
[1773359249324,0.53887506,2078.1,2077.5,0.54293738]
[1773359249521,6.60067201,2078.0,2077.5,0.54293738]
[1773359249721,0.53887506,2078.0,2077.6,0.7929095]
[1773359249922,0.53887506,2078.0,2077.6,0.5484195]
[1773359250427,0.53887506,2077.8,2077.3,0.55272932]
[1773359253223,0.53887506,2077.8,2077.3,0.79490932]
[1773359253426,0.53887506,2077.8,2077.5,0.5484195]
[1773359253626,6.00224245,2078.1,2077.6,0.7954295]
[1773359253627,6.00224245,2078.0,2077.6,0.7954295]
[1773359253828,6.54111751,2078.0,2077.7,0.7938195]
[1773359254020,0.53887506,2078.0,2077.7,0.7938195]
[1773359254221,4.00495787,2078.3,2077.3,0.00430982]
[1773359254222,0.53887506,2078.1,2077.8,0.5484195]
[1773359254426,6.00190362,2078.0,2077.8,0.5484195]
[1773359254628,6.00190362,2078.0,2077.3,0.00430982]
[1773359254629,6.00190362,2078.0,2077.4,0.7895295]
[1773359254919,0.53887506,2077.9,2077.6,0.7900895]
[1773359255125,0.53887506,2077.9,2077.6,0.5484195]
[1773359256127,0.53887506,2077.9,2077.4,0.5484195]
[1773359257033,0.53887506,2077.9,2077.5,0.7898095]
[1773359257829,0.53887506,2078.1,2077.6,0.8026695]
[1773359258031,0.00514093,2078.3,2077.7,0.8025295]
[1773359258032,6.53690466,2078.0,2077.7,0.8025295]
[1773359258329,0.53887506,2078.2,2077.7,0.8025295]
[1773359258527,6.53714784,2078.1,2077.7,0.8025295]
[1773359258729,5.99827278,2078.0,2077.7,0.8025295]
[1773359259131,0.53887506,2078.1,2077.7,0.8025295]
[1773359259433,0.53887506,2077.9,2077.4,0.5484195]
[1773359260636,0.53887506,2078.0,2077.6,0.7959895]
[1773359261133,0.53887506,2078.0,2077.7,0.7931195]
[1773359261432,0.53887506,2078.0,2077.3,0.00430982]
[1773359261632,0.53887506,2078.0,2077.4,0.7914395]
[1773359261830,0.53887506,2078.0,2077.3,0.00430982]
[1773359261831,0.53887506,2078.0,2077.7,0.7919395]
[1773359262533,0.53887506,2078.0,2077.6,0.5484195]
[1773359268139,0.5434272,2078.1,2077.6,0.5484195]
[1773359268335,0.5434272,2078.0,2077.6,0.5484195]
[1773359268730,0.5434272,2078.1,2077.6,0.5484195]
[1773359269232,0.5434272,2078.0,2077.6,0.5484195]
[1773359270425,0.5434272,2078.0,2077.7,0.81330854]
[1773359270933,0.55168902,2078.1,2077.7,0.57215854]
[1773359271131,0.55168902,2078.0,2077.5,0.77885154]
[1773359271330,0.55168902,2077.9,2077.5,0.53820154]
[1773359272631,0.55168902,2077.9,2077.5,0.78109154]
[1773359273633,0.55168902,2077.9,2077.5,0.53820154]
[1773359273838,0.55168902,2077.9,2077.3,0.00430982]
[1773359274033,0.55168902,2077.9,2077.4,0.78071154]
[1773359274432,0.55168902,2077.9,2077.4,0.53820154]
[1773359276631,0.55168902,2077.9,2077.4,0.77978154]
[1773359277836,0.55168902,2077.9,2077.3,0.00430982]
[1773359281134,0.55168902,2077.9,2077.3,0.54251136]
[1773359282842,0.55168902,2078.2,2077.3,0.54251136]
[1773359283043,0.55168902,2078.2,2077.4,0.53820154]
[1773359284234,0.55168902,2078.1,2077.4,0.53820154]
[1773359285142,0.55168902,2078.1,2077.6,0.53820154]
[1773359285345,0.55168902,2078.1,2077.6,0.78158154]
[1773359285944,0.55168902,2078.1,2077.6,0.53820154]
[1773359286339,0.55168902,2078.1,2077.4,0.53820154]
[1773359287142,0.55168902,2078.1,2077.5,0.53820154]
[1773359287943,0.55168902,2077.8,2077.0,0.53820154]
[1773359288141,0.55168902,2077.6,2077.0,0.53820154]
[1773359288540,0.55168902,2077.4,2076.5,0.53820154]
[1773359288848,0.55168902,2077.2,2076.5,0.54315421]
[1773359291549,0.55168902,2077.8,2076.8,0.53820154]
[1773359291944,0.55168902,2077.8,2076.8,0.78509154]
[1773359292143,0.55168902,2077.8,2077.2,0.53820154]
[1773359292848,0.55168902,2077.8,2077.2,0.77924154]
[1773359293443,0.55168902,2077.8,2077.3,0.78483154]
[1773359293650,0.55168902,2078.1,2077.4,0.78486154]
[1773359293845,0.55168902,2078.1,2077.5,0.78212154]
[1773359294149,0.55168902,2078.1,2077.5,0.53820154]
[1773359295449,0.55168902,2078.1,2077.2,0.53820154]
[1773359303457,0.54973646,2077.8,2076.7,0.58364008]
[1773359305866,0.54973646,2077.5,2076.7,0.58364008]
[1773359311569,0.54973646,2077.3,2076.7,0.58364008]
[1773359316771,0.54973646,2077.1,2076.5,0.00495267]
[1773359316978,0.54973646,2077.1,2076.5,0.58859275]
[1773359318172,0.54973646,2077.1,2076.6,0.58364008]
[1773359318477,0.54973646,2077.1,2076.7,0.58364008]
[1773359320776,2.40416358,2077.2,2076.7,0.58364008]
[1773359321175,0.54973646,2077.1,2076.7,0.58364008]
[1773359321673,1.85442712,2077.2,2076.7,0.58364008]
[1773359321874,2.40416358,2077.2,2076.7,0.58364008]
[1773359322577,0.54973646,2077.1,2076.7,0.58364008]
[1773359323474,2.41571375,2077.2,2076.8,0.83074893]
[1773359323775,2.41571375,2077.2,2076.9,0.58956893]
[1773359325179,2.41571375,2077.2,2076.5,0.00495267]
[1773359325180,0.56128663,2077.1,2076.6,0.58956893]
[1773359327768,0.56128663,2077.1,2076.7,0.83172893]
[1773359327975,2.41571375,2077.2,2076.8,0.83131893]
[1773359328179,0.56128663,2077.1,2076.8,0.58956893]
[1773359329276,0.56128663,2077.1,2076.6,0.58956893]
[1773359330977,0.56128663,2077.1,2076.5,0.00495267]
[1773359331184,0.58358975,2076.9,2076.5,0.54391452]
[1773359337888,0.58358975,2076.9,2076.5,0.78481452]
[1773359338787,0.58358975,2076.9,2076.6,0.78477185]
[1773359338994,0.58358975,2077.0,2076.7,0.78341185]
[1773359339191,0.58358975,2077.0,2076.7,0.53896185]
[1773359339991,0.58358975,2077.0,2076.6,0.53896185]
[1773359340191,0.58358975,2077.0,2076.5,0.00495267]
[1773359340593,0.58358975,2077.0,2076.5,0.54391452]
[1773359341590,0.58358975,2076.8,2076.2,0.53896185]
[1773359342296,0.58358975,2076.7,2076.2,0.53896185]
[1773359342496,0.58837945,2076.7,2076.2,0.5434358]
[1773359343290,0.58837945,2076.7,2076.2,0.00447395]
[1773359343590,0.58358975,2076.6,2076.1,0.53896185]
[1773359344194,0.0047897,2076.7,2076.3,0.53896185]
[1773359344390,0.0047897,2076.7,2076.3,0.54031543]
[1773359344592,0.0047897,2076.7,2076.3,0.78123543]
[1773359344792,0.0047897,2076.7,2076.4,0.78219185]
[1773359345097,0.58358975,2076.9,2076.5,0.78221185]
[1773359345694,0.58358975,2076.9,2076.5,0.53896185]
[1773359345890,0.58963365,2076.9,2076.5,0.53896185]
[1773359347795,0.58963365,2076.9,2076.3,0.00135358]
[1773359347796,0.58963365,2076.9,2076.6,0.53896185]
[1773359349098,0.58963365,2076.9,2076.4,0.53896185]
[1773359350301,0.58963365,2076.9,2076.4,0.77999185]
[1773359350499,0.58963365,2076.9,2076.6,0.78313185]
[1773359350797,0.58358975,2077.0,2076.7,0.78242185]
[1773359351699,0.58358975,2077.0,2076.7,0.53896185]
[1773359351900,0.58976708,2077.0,2076.7,0.53896185]
[1773359353900,0.47223273,2077.2,2076.7,0.53896185]
[1773359354200,6.27846705,2077.2,2076.7,0.53896185]
[1773359355096,6.28348386,2077.2,2076.7,0.53896185]
[1773359355495,10.553,2077.3,2076.7,0.53896185]
[1773359355496,0.47278752,2077.4,2076.7,0.53896185]
[1773359356704,0.47726165,2077.4,2076.7,0.53896185]
[1773359359203,0.47643353,2077.3,2076.7,0.53896185]
[1773359362405,0.47230273,2077.2,2076.4,0.587998]
[1773359362605,0.47230273,2077.0,2076.4,0.587998]
[1773359365101,0.47217535,2076.9,2076.4,0.587998]
[1773359366300,6.21143265,2077.0,2076.4,0.587998]
[1773359366606,0.46855921,2077.0,2076.4,0.587998]
[1773359366808,0.46855921,2077.2,2076.4,0.587998]
[1773359367303,0.47303334,2077.4,2076.4,0.587998]
[1773359367509,6.20764931,2077.4,2076.6,0.587998]
[1773359368407,0.00447413,2077.4,2076.6,0.587998]
[1773359368610,0.00447413,2077.4,2076.7,0.830028]
[1773359368805,6.19792202,2077.7,2076.8,0.830528]
[1773359369007,6.19792202,2077.7,2076.9,0.830328]
[1773359369200,6.19792202,2077.7,2077.0,0.829248]
[1773359369409,6.19792202,2077.7,2077.1,0.587998]
[1773359369804,6.20411651,2077.7,2077.1,0.587998]
[1773359370007,5.73061649,2077.6,2077.1,0.587998]
[1773359370307,0.48443373,2077.6,2077.1,0.587998]
[1773359373111,0.49343193,2077.7,2077.1,0.587998]
[1773359373409,0.49343193,2077.7,2076.8,0.587998]
[1773359374508,0.49343193,2077.7,2077.0,0.587998]
[1773359374809,0.00619449,2077.7,2077.0,0.587998]
[1773359375407,0.4964712,2077.7,2077.0,0.587998]
[1773359378209,0.00619449,2077.7,2077.0,0.587998]
[1773359378416,0.00619449,2077.7,2077.1,0.832268]
[1773359378712,0.00619449,2077.7,2077.2,0.833718]
[1773359379111,0.00619449,2077.7,2077.3,0.834918]
[1773359379316,0.00619449,2077.7,2077.4,0.834818]
[1773359380016,0.00619449,2077.7,2077.5,0.831768]
[1773359381515,0.00619449,2077.7,2077.5,0.587998]
[1773359382819,0.47842259,2078.0,2077.5,0.587998]
[1773359383919,0.48223602,2078.0,2077.5,0.587998]
[1773359384421,0.48223602,2078.0,2077.1,0.56474575]
[1773359387516,0.48223602,2078.0,2077.3,0.56474575]
[1773359389623,0.48223602,2078.0,2076.9,0.56474575]
[1773359394728,0.48223602,2078.0,2077.1,0.56556027]
[1773359395121,6.13930527,2078.0,2077.1,0.56556027]
[1773359395517,6.13930527,2078.0,2077.1,0.80739027]
[1773359395728,6.13930527,2078.0,2077.2,0.80718027]
[1773359395922,6.13930527,2078.0,2077.4,0.80753027]
[1773359396117,0.47797118,2077.9,2077.4,0.56556027]
[1773359397233,0.47797118,2077.9,2077.0,0.24071]
[1773359397431,0.47797118,2077.9,2077.1,0.56556027]
[1773359397820,0.47886874,2077.8,2077.1,0.56556027]
[1773359406554,0.47104036,2077.7,2077.1,0.56556027]
[1773359407448,0.47104036,2077.7,2077.3,0.80868027]
[1773359407653,0.47104036,2077.7,2077.4,0.80770027]
[1773359407948,0.43713641,2077.7,2077.4,0.80669027]
[1773359408153,0.43713641,2077.7,2077.4,0.56556027]
[1773359408350,4.0251707,2078.0,2077.4,0.56556027]
[1773359408351,5.67747666,2077.9,2077.4,0.56556027]
[1773359408544,0.00381343,2078.0,2077.4,0.56556027]
[1773359408746,0.42731701,2078.0,2077.4,0.56556027]
[1773359411253,0.42351962,2078.4,2077.6,0.56556027]
[1773359411457,0.42778257,2078.3,2077.6,0.56556027]
[1773359412152,0.43168381,2078.3,2077.6,0.56556027]
[1773359413661,0.43168381,2078.3,2077.7,0.56556027]
[1773359414360,0.42627111,2078.2,2077.7,0.56556027]
[1773359415159,0.42627111,2078.2,2077.4,0.56556027]
[1773359418462,0.41173033,2078.1,2077.4,0.56556027]
[1773359418660,0.00390124,2078.3,2078.0,2.41802661]
[1773359418962,0.59165064,2078.4,2077.9,0.56556027]
[1773359419162,0.59165064,2078.3,2077.8,0.56556027]
[1773359419865,0.59766757,2078.3,2077.8,0.56982448]
[1773359423664,0.59766757,2078.3,2078.0,0.55247009]
[1773359423965,0.56240077,2079.1,2078.2,0.55247009]
[1773359424164,12.47246634,2079.2,2078.2,0.55247009]
[1773359424165,0.56240077,2078.7,2078.2,0.55247009]
[1773359424769,0.56240077,2078.5,2078.0,0.55247009]
[1773359425166,0.56240077,2078.5,2077.8,0.5567343]
[1773359425367,0.56240077,2078.1,2077.7,0.55247009]
[1773359425565,0.56240077,2077.9,2077.4,0.55247009]
[1773359425765,0.56240077,2077.7,2077.4,0.55247009]
[1773359426470,0.56240077,2077.7,2077.4,0.55850416]
[1773359434071,0.56240077,2077.7,2077.4,0.00603407]
[1773359434676,0.56240077,2077.7,2077.4,0.55850416]
[1773359435577,0.56240077,2078.0,2077.4,0.55850416]
[1773359436176,0.56240077,2078.0,2077.4,0.00603407]
[1773359437078,0.56240077,2078.0,2077.4,0.55850416]
[1773359437578,0.56240077,2078.0,2077.4,0.00603407]
[1773359440479,0.56240077,2077.8,2077.4,0.00603407]
[1773359443380,0.56228517,2077.6,2077.2,0.55247009]
[1773359443786,0.56228517,2077.6,2077.1,0.58589191]
[1773359443985,0.56228517,2077.6,2077.1,1.27889191]
[1773359444284,0.56228517,2077.6,2077.1,1.28457864]
[1773359446785,0.56228517,2077.4,2076.9,0.58589191]
[1773359447489,0.56228517,2077.6,2077.0,0.58589191]
[1773359447889,0.56228517,2077.6,2077.0,0.59056989]
[1773359453291,0.56769808,2077.8,2077.0,0.59056989]
[1773359453593,0.56769808,2077.8,2077.2,0.58797759]
[1773359456696,0.56769808,2077.7,2077.2,0.58797759]
[1773359460498,0.56769808,2077.9,2077.3,1.85246634]
[1773359460797,0.56769808,2078.1,2077.6,0.58797759]
[1773359461201,0.56769808,2078.1,2077.5,1.85246634]
[1773359461202,0.3125053,2078.5,2078.0,0.58797759]
[1773359461401,0.30938916,2078.7,2078.2,0.58797759]
[1773359461603,0.00340319,2078.7,2078.2,0.58797759]
[1773359461902,0.30598597,2079.1,2078.4,0.58797759]
[1773359463007,0.31069494,2079.1,2078.4,0.58797759]
[1773359463906,0.31069494,2079.1,2077.9,1.85246634]
[1773359463907,0.33143001,2078.9,2077.9,1.85246634]
[1773359464110,0.33143001,2078.9,2078.0,0.58797759]
[1773359466104,0.33143001,2078.9,2077.9,1.85246634]
[1773359466105,0.33143001,2078.9,2078.2,0.58797759]
[1773359478921,0.00470897,2079.1,2078.6,0.58797759]
[1773359479220,0.00470897,2079.1,2078.6,0.59296257]
[1773359480920,0.32350809,2079.1,2078.6,0.59296257]
[1773359481216,0.00470897,2079.1,2078.6,0.59296257]
[1773359481421,0.33037395,2079.5,2078.6,0.59296257]
[1773359481617,0.33037395,2079.4,2078.6,0.59296257]
[1773359482518,0.33633768,2079.4,2078.6,0.59296257]
[1773359490532,0.57708768,2079.4,2078.6,0.59296257]
[1773359490831,0.32839626,2079.1,2078.6,0.59296257]
[1773359491929,0.32839626,2079.1,2078.4,0.57227198]
[1773359492122,0.3295353,2078.9,2078.4,0.57227198]
[1773359492324,0.55543455,2078.4,2077.8,0.57227198]
[1773359492723,0.55543455,2078.3,2077.8,0.57227198]
[1773359493030,10.559,2078.4,2077.8,0.57227198]
[1773359493230,10.559,2078.4,2077.8,0.57835311]
[1773359494031,0.55543455,2078.3,2077.8,0.57835311]
[1773359495331,0.55543455,2078.3,2077.3,0.57227198]
[1773359496434,0.55543455,2078.0,2077.3,0.57567504]
[1773359497231,0.55543455,2078.0,2077.3,0.00340306]
[1773359499837,0.79811455,2077.9,2077.3,0.00340306]
[1773359500037,0.79705455,2077.6,2077.3,0.00340306]
[1773359500232,0.55543455,2077.5,2077.2,0.57227198]
[1773359500433,0.55543455,2077.5,2076.8,0.5124734]
[1773359501132,0.55543455,2077.5,2076.8,0.51733777]
[1773359501939,0.55543455,2077.5,2076.8,0.00486437]
[1773359502639,0.55543455,2077.4,2076.2,0.51273592]
[1773359503643,0.55543455,2077.4,2076.2,0.51782344]
[1773359505643,0.55210232,2076.8,2076.2,0.00508752]
[1773359505943,0.55210232,2076.8,2076.2,0.51868012]
[1773359507042,0.55210232,2077.1,2076.2,0.51868012]
[1773359517044,0.58211893,2077.3,2076.5,0.47772653]
[1773359519845,0.58211893,2077.5,2076.5,0.47772653]
[1773359520240,0.58211893,2077.8,2076.8,0.47319939]
[1773359520446,0.58211893,2077.8,2076.9,0.47319939]
[1773359520744,0.0042292,2077.9,2077.4,0.47319939]
[1773359520951,0.58211893,2078.5,2077.4,0.47319939]
[1773359521147,0.58211893,2078.4,2077.4,0.47319939]
[1773359521844,0.58619649,2078.4,2077.4,0.47319939]
[1773359522252,0.58211893,2078.2,2077.1,0.4689587]
[1773359522750,0.58211893,2078.2,2077.2,0.4689587]
[1773359528769,0.58211893,2078.0,2077.2,0.4689587]
[1773359535963,0.58211893,2078.0,2077.2,0.4889587]
[1773359537377,0.58211893,2077.9,2077.0,0.47101143]
[1773359540472,0.58211893,2077.9,2077.1,0.47172831]
[1773359542172,0.58211893,2077.9,2076.9,0.49188717]
[1773359542372,0.57195796,2077.8,2076.9,0.49188717]
[1773359544678,0.57195796,2077.8,2076.9,0.47188717]
[1773359547673,0.57195796,2077.7,2076.9,0.47188717]
[1773359547867,0.57195796,2077.6,2076.9,0.47188717]
[1773359550881,5.53163493,2077.7,2077.3,0.46394687]
[1773359551080,0.57195796,2077.7,2077.3,0.46394687]
[1773359551281,0.57195796,2077.8,2077.3,0.46394687]
[1773359552282,6.12542274,2077.8,2077.3,0.46394687]
[1773359552483,0.57195796,2077.8,2077.3,0.46394687]
[1773359553678,0.57195796,2077.8,2077.1,0.46298401]
[1773359554981,0.57195796,2077.7,2077.1,0.46298401]
[1773359555182,0.57195796,2077.6,2077.1,0.46298401]
[1773359555383,0.57195796,2077.5,2076.9,0.46298401]
[1773359555580,0.57195796,2077.4,2076.9,0.46298401]
[1773359555782,0.57195796,2077.3,2076.7,0.46279433]
[1773359555983,1.85390819,2077.4,2076.4,0.46279433]
[1773359555984,0.57195796,2076.9,2076.4,0.46279433]
[1773359556184,0.57765626,2076.9,2076.4,0.46279433]
[1773359556383,0.57195796,2076.7,2076.2,0.46788185]
[1773359559184,0.57195796,2076.8,2076.2,0.46788185]
[1773359559691,0.0056983,2076.9,2076.2,0.46788185]
[1773359560094,0.57765626,2076.9,2076.2,0.46788185]
[1773359561595,0.57765626,2076.9,2076.2,0.00508752]
[1773359563583,0.57765626,2076.9,2076.2,0.48560121]
[1773359566194,0.57765626,2076.9,2076.2,0.00508752]
[1773359567694,0.57765626,2076.9,2076.2,0.48582024]
[1773359568498,0.57765626,2076.9,2076.2,0.00508752]
[1773359569290,0.57765626,2076.9,2076.2,0.48582024]
[1773359574095,0.57765626,2076.9,2076.2,0.00508752]
[1773359575097,0.55018963,2076.7,2076.2,0.00508752]
[1773359580700,10.548,2076.8,2076.2,0.48291877]
[1773359580906,0.55018963,2076.7,2076.4,0.47783125]
[1773359581401,11.09818963,2076.8,2076.4,0.47783125]
[1773359584406,0.55018963,2076.7,2076.3,0.4735293]
[1773359587310,6.1012438,2076.7,2076.3,0.4735293]
[1773359587609,0.55018963,2076.7,2076.3,0.4735293]
[1773359587812,11.09818963,2076.8,2076.3,0.4735293]
[1773359588103,6.1016272,2076.7,2076.3,0.4735293]
[1773359588309,0.55018963,2076.6,2076.3,0.4735293]
[1773359589302,0.55018963,2076.6,2076.2,2.32831835]
[1773359589506,0.55018963,2076.6,2076.2,0.00508752]
[1773359598523,6.1016272,2076.7,2076.2,0.46312779]
[1773359598728,0.55018963,2076.7,2076.2,0.46312779]
[1773359604431,0.57186345,2076.9,2076.4,0.4580455]
[1773359604731,0.56616515,2077.0,2076.4,0.4580455]
[1773359604926,0.56616515,2077.0,2076.6,0.4580455]
[1773359605631,0.5699958,2077.0,2076.6,0.4580455]
[1773359608330,10.613,2077.2,2076.6,0.4580455]
[1773359608331,0.56616515,2077.1,2076.6,0.4580455]
[1773359609333,0.57060016,2077.1,2076.6,0.4580455]
[1773359609733,0.56616515,2077.2,2076.6,0.4580455]
[1773359609935,7.90088105,2077.8,2076.6,0.4580455]
[1773359609936,0.56616515,2077.3,2076.6,0.4580455]
[1773359610130,0.56616515,2077.3,2076.8,0.53570397]
[1773359610837,0.57007314,2077.3,2076.8,0.53570397]
[1773359611730,0.00390799,2077.3,2076.8,0.53570397]
[1773359611931,0.56616515,2077.5,2076.8,0.53570397]
[1773359613031,0.57052231,2077.5,2076.8,0.53570397]
[1773359615239,0.56616515,2077.4,2076.4,6.59761503]
[1773359615441,0.56616515,2077.4,2076.4,0.53570397]
[1773359624141,0.56616515,2077.4,2076.6,0.57875503]
[1773359624445,0.56616515,2077.4,2076.7,0.57875503]
[1773359627046,0.56616515,2077.4,2076.6,0.57875503]
[1773359634960,0.56616515,2077.4,2076.6,0.59875503]
[1773359635457,0.56616515,2077.4,2076.6,0.02]
[1773359637755,0.58583503,2077.2,2076.3,0.54460738]
[1773359637957,0.58583503,2077.0,2076.2,6.06699858]
[1773359638761,0.58583503,2077.0,2076.2,6.61160596]
[1773359639161,0.58583503,2077.0,2076.2,0.5496949]
[1773359640362,0.58583503,2077.0,2076.2,0.00508752]
[1773359640961,0.58583503,2077.0,2076.2,0.5496949]
[1773359650665,0.58583503,2077.0,2076.2,0.00508752]
[1773359651071,0.58583503,2077.0,2076.2,0.5496949]
[1773359654673,0.58583503,2077.0,2076.2,0.00508752]
[1773359655973,2.44138657,2077.0,2076.2,0.00508752]
[1773359656272,0.58583503,2076.9,2076.2,0.00508752]
[1773359656468,2.44138657,2076.8,2075.8,0.54460738]
[1773359656674,2.44138657,2076.8,2075.6,0.54460738]
[1773359656675,0.58583503,2076.7,2075.6,0.54460738]
[1773359657470,0.58583503,2076.6,2075.6,0.55003289]
[1773359657668,0.58583503,2076.3,2075.6,0.55003289]
[1773359660970,10.606,2076.5,2075.6,0.55003289]
[1773359660971,0.5600964,2076.1,2075.6,0.55003289]
[1773359661474,0.5600964,2075.9,2075.4,0.56546998]
[1773359662278,0.5600964,2075.9,2075.3,0.57086998]
[1773359662979,0.565969,2075.9,2075.3,0.57470475]
[1773359663978,0.5600964,2075.7,2075.3,0.57470475]
[1773359664473,0.5600964,2075.7,2075.3,0.00923477]
[1773359664679,0.5600964,2075.7,2075.1,0.57086998]
[1773359665178,0.5600964,2075.7,2075.2,0.56546998]
[1773359665676,0.5600964,2075.7,2075.2,0.56904474]
[1773359665875,10.6178726,2075.9,2075.4,0.56546998]
[1773359666071,0.565969,2075.9,2075.4,0.56546998]
[1773359667478,0.565969,2075.9,2075.3,0.56546998]
[1773359667672,0.5600964,2075.7,2075.2,0.56904474]
[1773359668770,0.565969,2075.9,2075.3,0.56546998]
[1773359669482,0.5600964,2076.2,2075.7,0.56546998]
[1773359669677,0.5600964,2076.2,2075.5,0.56546998]
[1773359669880,0.5600964,2076.1,2075.3,0.56546998]
[1773359670073,0.5600964,2076.1,2075.4,1.85625109]
[1773359670272,0.5600964,2076.1,2075.5,0.56546998]
[1773359670473,0.56448592,2076.1,2075.5,0.56546998]
[1773359670674,0.56448592,2076.1,2075.4,0.56546998]
[1773359671570,0.56448592,2076.1,2075.5,0.56546998]
[1773359672375,0.56448592,2076.1,2075.7,0.56546998]
[1773359672679,0.5600964,2076.3,2075.7,0.56546998]
[1773359673581,0.56565728,2076.3,2075.7,0.56546998]
[1773359681385,0.5600964,2076.7,2076.1,0.56546998]
[1773359681978,0.5600964,2076.4,2075.7,0.56546998]
[1773359682188,0.5600964,2076.2,2075.5,0.56546998]
[1773359686291,0.55894643,2076.0,2075.4,0.58849942]
[1773359688989,0.55894643,2076.0,2075.2,2.44832527]
[1773359689392,0.55894643,2076.0,2075.2,0.59207418]
[1773359689985,0.55894643,2076.0,2075.3,0.58849942]
[1773359690891,0.55894643,2076.0,2075.4,1.85625109]
[1773359691095,0.55894643,2076.0,2075.5,0.57482308]
[1773359691293,0.55894643,2076.0,2075.4,0.57482308]
[1773359698597,1.85625109,2076.2,2075.4,0.57482308]
[1773359698795,0.54078873,2076.1,2075.4,0.57482308]
[1773359702202,0.54078873,2075.9,2075.4,0.57482308]
[1773359702894,14.92114317,2076.3,2075.4,0.57482308]
[1773359702895,14.68034317,2076.3,2075.4,0.57482308]
[1773359703100,0.54078873,2076.2,2075.6,0.57482308]
[1773359705597,0.54078873,2076.1,2075.6,0.57482308]
[1773359706495,0.54078873,2075.9,2075.4,0.57482308]
[1773359707694,2.39703982,2075.8,2075.2,0.00357476]
[1773359707900,0.54078873,2075.5,2075.1,0.0054]
[1773359708098,0.54078873,2075.5,2074.9,0.58022308]
[1773359708294,0.54078873,2075.4,2074.9,0.58022308]
[1773359709200,0.54078873,2075.4,2074.9,0.58441224]
[1773359710502,0.54078873,2075.3,2074.7,2.43647417]
[1773359710802,0.54078873,2075.3,2074.8,0.57482308]
[1773359711703,0.54078873,2075.3,2074.8,0.57973807]
[1773359713000,0.54078873,2075.2,2074.8,0.57973807]
[1773359713200,0.54078873,2075.2,2074.7,0.58022308]
[1773359713596,0.54078873,2075.1,2074.5,0.58022308]
[1773359713901,0.54078873,2074.7,2074.1,0.58022308]
[1773359714103,0.54078873,2074.6,2074.1,0.58638287]
[1773359715100,0.54078873,2074.6,2074.1,0.01155979]
[1773359715505,0.54078873,2074.2,2073.5,0.36083758]
[1773359715695,0.54078873,2074.4,2073.8,0.35543758]
[1773359715901,0.54078873,2074.5,2074.0,0.35543758]